fUSD/lending_fUSD_20241116
["ID","MTS","AMOUNT","RATE_DAILY","PERIOD"]
[342393341,1731784493639,774.58,0.00025,60]
[342393342,1731784494164,774.58,0.00025,60]
[342393343,1731784494758,774.58,0.00025,60]
[342393344,1731784494798,774.58,0.00025,60]
[342393345,1731784495153,774.58,0.00025,60]
[342393346,1731784495475,774.58,0.00025,60]
[342393347,1731784495742,774.58,0.00025,60]
[342393348,1731784496000,774.58,0.00025,60]
[342393349,1731784496260,774.58,0.00025,60]
[342393350,1731784496541,774.58,0.00025,60]
[342393351,1731784496807,774.58,0.00025,60]
[342393352,1731784498617,500.0,0.00025,60]
[342393353,1731784498904,500.0,0.00025,60]
[342393354,1731784499172,500.0,0.00025,60]
[342393355,1731784499437,500.0,0.00025,60]
[342393356,1731784499697,500.0,0.00025,60]
[342393357,1731784499970,500.0,0.00025,60]
[342393358,1731784500260,500.0,0.00025,60]
[342393359,1731784500418,500.0,0.00025,60]
[342393360,1731784500547,500.0,0.00025,60]
[342393361,1731784500694,500.0,0.00025,60]
[342393362,1731784500814,500.0,0.00025,60]
[342393363,1731784500949,500.0,0.00025,60]
[342393364,1731784501082,500.0,0.00025,60]
[342393365,1731784501241,481.36,0.00025,60]
[342393366,1731784501371,500.0,0.00025,60]
[342393367,1731784501629,500.0,0.00025,60]
[342393368,1731784501931,500.0,0.00025,60]
[342393369,1731784502223,500.0,0.00025,60]
[342393370,1731784502503,500.0,0.00025,60]
[342393371,1731784502930,623.20904043,0.00025,60]
[342393372,1731784505235,1205.27,0.00025,60]
[342393373,1731784505842,1205.27,0.00025,60]
[342393374,1731784506124,1205.27,0.00025,60]
[342393375,1731784506404,1205.27,0.00025,60]
[342393376,1731784512311,1205.27,0.00025,60]
[342393377,1731784512844,1205.27,0.00025,60]
[342393378,1731784514209,1205.27,0.00025,60]
[342393379,1731784514493,1205.27,0.00025,60]
[342393380,1731784515449,1205.27,0.00025,60]
[342393381,1731784515551,1205.27,0.00025,60]
[342393382,1731784515829,1205.27,0.00025,60]
[342393383,1731784516102,1205.27,0.00025,60]
[342393384,1731784516381,1205.27,0.00025,60]
[342393385,1731784516643,1205.27,0.00025,60]
[342393386,1731784516911,1205.27,0.00025,60]
[342393387,1731784517180,1205.27,0.00025,60]
[342393388,1731784517479,1205.27,0.00025,60]
[342393389,1731784517766,1205.27,0.00025,60]
[342393390,1731784518045,1205.27,0.00025,60]
[342393391,1731784518329,1205.27,0.00025,60]
[342393392,1731784518686,1205.27,0.00025,60]
[342393393,1731784518972,1205.27,0.00025,60]
[342393394,1731784519252,1205.27,0.00025,60]
[342393395,1731784519521,1205.3,0.00025,60]
[342393396,1731784521601,181.61640714,0.00025,60]
[342393398,1731784569708,500.0,0.00025,60]
[342393399,1731784570012,500.0,0.00025,60]
[342393400,1731784570300,407.77744106,0.00025,60]
[342393401,1731784577305,500.0,0.00025,60]
[342393402,1731784577590,500.0,0.00025,60]
[342393403,1731784577895,500.0,0.00025,60]
[342393418,1731784597922,500.0,0.00025,60]
[342393419,1731784598532,500.0,0.00025,60]
[342393420,1731784598797,500.0,0.00025,60]
[342393421,1731784608395,1020.42,8.219e-05,2]
[342393422,1731784638580,500.0,0.00025,60]
[342393423,1731784638837,500.0,0.00025,60]
[342393424,1731784639133,500.0,0.00025,60]
[342393425,1731784639418,500.0,0.00025,60]
[342393426,1731784639685,500.0,0.00025,60]
[342393427,1731784639957,500.0,0.00025,60]
[342393428,1731784640223,500.0,0.00025,60]
[342393429,1731784640496,500.0,0.00025,60]
[342393430,1731784640813,500.0,0.00025,60]
[342393431,1731784641339,500.0,0.00025,60]
[342393432,1731784641382,500.0,0.00025,60]
[342393433,1731784641603,500.0,0.00025,60]
[342393434,1731784641871,224.09235718,0.00025,60]
[342393435,1731784644012,687.18,0.00025,60]
[342393436,1731784645690,687.18,0.00025,60]
[342393437,1731784646004,687.18,0.00025,60]
[342393438,1731784646390,687.18,0.00025,60]
[342393439,1731784646679,687.18,0.00025,60]
[342393440,1731784646911,687.18,0.00025,60]
[342393441,1731784647172,687.18,0.00025,60]
[342393442,1731784647469,687.18,0.00025,60]
[342393443,1731784649655,687.18,0.00025,60]
[342393444,1731784650782,687.18,0.00025,60]
[342393445,1731784653000,687.18,0.00025,60]
[342393446,1731784653434,687.18,0.00025,60]
[342393447,1731784654713,687.18,0.00025,60]
[342393448,1731784655003,687.18,0.00025,60]
[342393449,1731784655710,687.18,0.00025,60]
[342393450,1731784655994,687.18,0.00025,60]
[342393451,1731784656274,687.18,0.00025,60]
[342393452,1731784656553,687.18,0.00025,60]
[342393453,1731784656860,687.18,0.00025,60]
[342393454,1731784657100,687.18,0.00025,60]
[342393455,1731784657351,687.18,0.00025,60]
[342393456,1731784657617,687.18,0.00025,60]
[342393457,1731784657885,687.18,0.00025,60]
[342393458,1731784658186,687.37,0.00025,60]
[342393459,1731784672152,298.58,0.00025,60]
[342393460,1731784685913,500.0,0.00025,60]
[342393461,1731784686149,500.0,0.00025,60]
[342393462,1731784686439,387.53,0.00025,60]
[342393463,1731784686488,500.0,0.00025,60]
[342393464,1731784686713,500.0,0.00025,60]
[342393465,1731784687016,500.0,0.00025,60]
[342393466,1731784687281,500.0,0.00025,60]
[342393467,1731784687551,500.0,0.00025,60]
[342393468,1731784687666,817.65,0.00025,60]
[342393469,1731784687834,500.0,0.00025,60]
[342393470,1731784688069,817.65,0.00025,60]
[342393471,1731784688128,500.0,0.00025,60]
[342393472,1731784688329,817.65,0.00025,60]
[342393473,1731784688384,500.0,0.00025,60]
[342393474,1731784688592,817.65,0.00025,60]
[342393475,1731784688654,500.0,0.00025,60]
[342393476,1731784688871,817.65,0.00025,60]
[342393477,1731784688923,500.0,0.00025,60]
[342393478,1731784689140,817.65,0.00025,60]
[342393479,1731784689187,557.00840632,0.00025,60]
[342393480,1731784689411,817.65,0.00025,60]
[342393481,1731784690107,817.65,0.00025,60]
[342393482,1731784690396,817.65,0.00025,60]
[342393483,1731784690751,817.65,0.00025,60]
[342393484,1731784691056,817.65,0.00025,60]
[342393485,1731784691318,817.65,0.00025,60]
[342393486,1731784691576,817.65,0.00025,60]
[342393487,1731784691894,817.65,0.00025,60]
[342393488,1731784692346,500.0,0.00025,60]
[342393489,1731784692648,500.0,0.00025,60]
[342393490,1731784693273,500.0,0.00025,60]
[342393491,1731784693323,500.0,0.00025,60]
[342393492,1731784693368,817.65,0.00025,60]
[342393493,1731784693545,500.0,0.00025,60]
[342393494,1731784693642,817.65,0.00025,60]
[342393495,1731784693807,500.0,0.00025,60]
[342393496,1731784694095,500.0,0.00025,60]
[342393497,1731784694346,500.0,0.00025,60]
[342393498,1731784694616,500.0,0.00025,60]
[342393499,1731784694887,500.0,0.00025,60]
[342393500,1731784695154,590.73,0.00025,60]
[342393501,1731784695506,817.65,0.00025,60]
[342393502,1731784695827,817.65,0.00025,60]
[342393503,1731784696093,817.65,0.00025,60]
[342393504,1731784697377,817.65,0.00025,60]
[342393505,1731784699047,817.65,0.00025,60]
[342393506,1731784700745,817.65,0.00025,60]
[342393507,1731784701005,817.65,0.00025,60]
[342393508,1731784701761,500.0,0.00025,60]
[342393509,1731784702011,337.65,0.00025,60]
[342393510,1731784702643,817.73,0.00025,60]
[342393511,1731784719979,500.0,0.00025,60]
[342393512,1731784720281,500.0,0.00025,60]
[342393513,1731784720566,500.0,0.00025,60]
[342393514,1731784721107,426.16,0.00025,60]
[342393515,1731784757372,500.0,0.00025,60]
[342393516,1731784757649,500.0,0.00025,60]
[342393517,1731784757910,500.0,0.00025,60]
[342393518,1731784758180,500.0,0.00025,60]
[342393519,1731784758439,500.0,0.00025,60]
[342393520,1731784758698,500.0,0.00025,60]
[342393521,1731784758986,500.0,0.00025,60]
[342393522,1731784759275,500.0,0.00025,60]
[342393523,1731784759534,500.0,0.00025,60]
[342393524,1731784760179,500.0,0.00025,60]
[342393525,1731784760251,283.36,0.00025,60]
[342393526,1731784834950,500.0,0.00025,60]
[342393527,1731784835226,414.07656595,0.00025,60]
[342393528,1731784836116,500.0,0.00025,60]
[342393529,1731784836402,500.0,0.00025,60]
[342393530,1731784836997,500.0,0.00025,60]
[342393531,1731784837297,500.0,0.00025,60]
[342393532,1731784837571,500.0,0.00025,60]
[342393533,1731784837822,218.2,0.00025,60]
[342393546,1731784844416,512.93109382,0.00025,60]
[342393547,1731784857366,500.0,0.00025,60]
[342393548,1731784878833,500.0,0.00025,60]
[342393549,1731784898837,437.81642936,0.00025,60]
[342393550,1731784912182,500.0,0.00025,60]
[342393551,1731784937677,500.0,0.00025,60]
[342393552,1731784937961,500.0,0.00025,60]
[342393553,1731784938225,500.0,0.00025,60]
[342393554,1731784938501,426.16,0.00025,60]
[342393555,1731784941770,500.0,0.00025,60]
[342393556,1731784942391,209.85,0.00025,60]
[342393557,1731784944525,500.0,0.00025,60]
[342393558,1731784954159,500.0,0.00025,60]
[342393559,1731784954466,500.0,0.00025,60]
[342393560,1731784956386,214.78514524,0.00025,60]
[342393561,1731784961892,315.96,0.00025,60]
[342393562,1731784967783,581.17829094,0.00025,60]
[342393563,1731784981283,500.0,0.00025,60]
[342393571,1731784994724,500.0,0.00025,60]
[342393572,1731784995009,200.54,0.00025,60]
[342393573,1731784997169,500.0,0.00025,60]
[342393574,1731784999341,500.0,0.00025,60]
[342393575,1731785007930,500.0,0.00025,60]
[342393576,1731785011789,500.0,0.00025,60]
[342393577,1731785012945,500.0,0.00025,60]
[342393578,1731785013230,500.0,0.00025,60]
[342393579,1731785018278,500.0,0.00025,60]
[342393580,1731785018966,500.0,0.00025,60]
[342393581,1731785019048,552.97,0.00025,60]
[342393582,1731785020282,500.0,0.00025,60]
[342393583,1731785033974,500.0,0.00025,60]
[342393584,1731785039874,500.0,0.00025,60]
[342393585,1731785039926,500.0,0.00025,60]
[342393586,1731785039987,500.0,0.00025,60]
[342393587,1731785040126,500.0,0.00025,60]
[342393588,1731785040762,500.0,0.00025,60]
[342393589,1731785041046,500.0,0.00025,60]
[342393590,1731785041319,500.0,0.00025,60]
[342393591,1731785041606,500.0,0.00025,60]
[342393592,1731785041905,500.0,0.00025,60]
[342393593,1731785042176,500.0,0.00025,60]
[342393594,1731785042530,500.0,0.00025,60]
[342393595,1731785042803,500.0,0.00025,60]
[342393596,1731785043098,213.70328076,0.00025,60]
[342393597,1731785049562,467.80720141,0.00025,60]
[342393598,1731785051687,500.0,0.00025,60]
[342393599,1731785051947,500.0,0.00025,60]
[342393600,1731785052203,500.0,0.00025,60]
[342393601,1731785052460,500.0,0.00025,60]
[342393602,1731785052720,500.0,0.00025,60]
[342393603,1731785052980,500.0,0.00025,60]
[342393604,1731785053254,169.6,0.00025,60]
[342393605,1731785055683,500.0,0.00025,60]
[342393606,1731785074320,500.0,0.00025,60]
[342393607,1731785074605,500.0,0.00025,60]
[342393608,1731785074882,500.0,0.00025,60]
[342393609,1731785075174,500.0,0.00025,60]
[342393610,1731785075444,276.96,0.00025,60]
[342393611,1731785075942,434.25,0.00025,60]
[342393612,1731785081665,500.0,0.00025,60]
[342393613,1731785081946,500.0,0.00025,60]
[342393614,1731785082222,500.0,0.00025,60]
[342393615,1731785082498,500.0,0.00025,60]
[342393616,1731785082778,506.8,0.00025,60]
[342393617,1731785083148,500.0,0.00025,60]
[342393618,1731785083406,500.0,0.00025,60]
[342393619,1731785107235,500.0,0.00025,60]
[342393620,1731785109702,244.18,0.00025,60]
[342393621,1731785121033,500.0,0.00025,60]
[342393622,1731785121298,500.0,0.00025,60]
[342393623,1731785121591,500.0,0.00025,60]
[342393624,1731785129175,500.0,0.00025,60]
[342393625,1731785129466,500.0,0.00025,60]
[342393626,1731785129757,500.0,0.00025,60]
[342393627,1731785130175,500.0,0.00025,60]
[342393628,1731785130856,500.0,0.00025,60]
[342393629,1731785131186,500.0,0.00025,60]
[342393630,1731785131457,500.0,0.00025,60]
[342393631,1731785131778,500.0,0.00025,60]
[342393632,1731785132079,500.0,0.00025,60]
[342393633,1731785132356,500.0,0.00025,60]
[342393634,1731785132645,500.0,0.00025,60]
[342393635,1731785133328,500.0,0.00025,60]
[342393636,1731785133406,500.0,0.00025,60]
[342393637,1731785133693,473.62,0.00025,60]
[342393638,1731785135844,500.0,0.00025,60]
[342393639,1731785136912,165.48,8.219e-05,2]
[342393641,1731785180362,500.0,0.00025,60]
[342393642,1731785185256,500.0,0.00025,60]
[342393643,1731785185579,463.08,0.00025,60]
[342393644,1731785192923,500.0,0.00025,60]
[342393645,1731785192969,385.89492124,0.00025,60]
[342393646,1731785208020,1000.0,8.224e-05,2]
[342393647,1731785208413,500.0,0.00025,60]
[342393648,1731785220096,500.0,0.00025,60]
[342393649,1731785225119,-167.0,8.579e-05,2]
[342393650,1731785225142,-272.73,8.756e-05,2]
[342393651,1731785225164,-272.73,8.758e-05,2]
[342393652,1731785225193,-272.73,8.761e-05,2]
[342393653,1731785225218,-272.73,8.763e-05,2]
[342393654,1731785225253,-250.0,8.764e-05,2]
[342393655,1731785225278,-272.73,8.765e-05,2]
[342393656,1731785225302,-272.73,8.767e-05,2]
[342393657,1731785225324,-272.73,8.77e-05,2]
[342393658,1731785225347,-272.73,8.772e-05,2]
[342393659,1731785225370,-272.73,8.774e-05,2]
[342393660,1731785225393,-272.73,8.777e-05,2]
[342393661,1731785225415,-272.73,8.779e-05,2]
[342393662,1731785225444,-272.73,8.781e-05,2]
[342393663,1731785225466,-636.76,8.782e-05,2]
[342393664,1731785225488,-272.73,8.784e-05,2]
[342393665,1731785225512,-272.73,8.786e-05,2]
[342393666,1731785225535,-272.73,8.788e-05,2]
[342393667,1731785225558,-272.73,8.79e-05,2]
[342393668,1731785225581,-272.73,8.793e-05,2]
[342393669,1731785225603,-272.73,8.795e-05,2]
[342393670,1731785225627,-272.73,8.797e-05,2]
[342393671,1731785225651,-272.73,8.8e-05,2]
[342393672,1731785225672,-213.02,8.804e-05,2]
[342393673,1731785225696,-150.0,8.809e-05,2]
[342393674,1731785225719,-300.0,8.809e-05,2]
[342393675,1731785225742,-250.0,8.816e-05,2]
[342393676,1731785225764,-9454.1707421,8.82e-05,2]
[342393685,1731785230835,500.0,0.00025,60]
[342393686,1731785235004,155.88552402,0.00025,60]
[342393688,1731785303540,500.0,0.00025,60]
[342393689,1731785310213,969.39,8.219e-05,2]
[342393690,1731785313500,500.0,0.00025,60]
[342393691,1731785321949,500.0,0.00025,60]
[342393692,1731785327647,500.0,0.00025,60]
[342393693,1731785350093,-250.0,8.817e-05,2]
[342393694,1731785358101,-1060.11084899,9e-05,2]
[342393695,1731785358948,500.0,0.00025,60]
[342393696,1731785359222,500.0,0.00025,60]
[342393697,1731785359507,500.0,0.00025,60]
[342393698,1731785359773,500.0,0.00025,60]
[342393699,1731785360063,324.73,0.00025,60]
[342393708,1731785403064,250.0,8.826e-05,2]
[342393709,1731785405480,629.58,8.823e-05,2]
[342393710,1731785414886,500.0,0.00025,60]
[342393711,1731785416158,500.0,0.00025,60]
[342393712,1731785416418,463.08,0.00025,60]
[342393713,1731785420291,500.0,0.00025,60]
[342393754,1731785432520,-433.27,9.178e-05,2]
[342393756,1731785432529,-433.27,9.178e-05,2]
[342393758,1731785432539,-1000.0,9.252e-05,2]
[342393760,1731785432549,-200.0,9.6e-05,2]
[342393762,1731785432558,-400.0,9.6e-05,2]
[342393764,1731785432568,-433.27,9.6e-05,2]
[342393766,1731785432578,-2073.0,9.6e-05,5]
[342393768,1731785432587,-150.0,9.679e-05,2]
[342393770,1731785432597,-300.0,9.679e-05,2]
[342393772,1731785432607,-754.91047646,9.68e-05,2]
[342393774,1731785432693,-1263.08382354,9.68e-05,2]
[342393775,1731785432703,-36.51617646,9.68e-05,2]
[342393776,1731785432714,-21033.16882354,9.68e-05,2]
[342393777,1731785432724,-5994.3158,9.68e-05,2]
[342393778,1731785432734,-1975.6,9.69e-05,2]
[342393779,1731785432743,-433.2,9.69e-05,2]
[342393780,1731785432755,-3413.4433,9.7e-05,2]
[342393781,1731785432765,-500.0,9.7e-05,2]
[342393782,1731785432774,-1000.0,9.7e-05,2]
[342393783,1731785432784,-150.99,9.7e-05,2]
[342393784,1731785432793,-216.52,9.7e-05,2]
[342393785,1731785432803,-2500.0,9.7e-05,2]
[342393786,1731785432812,-1000.0,9.722e-05,2]
[342393787,1731785432822,-150.0,9.735e-05,2]
[342393788,1731785432832,-150.0,9.738e-05,2]
[342393789,1731785432843,-150.0,9.738e-05,2]
[342393790,1731785432852,-150.0,9.742e-05,2]
[342393791,1731785432862,-150.0,9.742e-05,2]
[342393792,1731785432871,-150.0,9.751e-05,2]
[342393793,1731785432883,-150.0,9.753e-05,2]
[342393794,1731785432897,-150.0,9.757e-05,2]
[342393795,1731785432907,-150.0,9.766e-05,2]
[342393796,1731785432916,-6252.35383554,9.77e-05,2]
[342393797,1731785432926,-892.47628881,9.779e-05,2]
[342393798,1731785432936,-9886.6562,9.78e-05,2]
[342393800,1731785432947,-8004.5652,9.78e-05,2]
[342393802,1731785432957,-1000.0,9.78e-05,2]
[342393804,1731785432967,-89453.25199406,9.78e-05,2]
[342393806,1731785432983,-10144.59448297,9.78e-05,2]
[342393807,1731785432996,-402.15352297,9.78e-05,2]
[342393808,1731785433006,-150.0,9.784e-05,2]
[342393809,1731785433016,-71.28030363,9.8e-05,2]
[342393811,1731785436948,500.0,0.00025,60]
[342393812,1731785436994,500.0,0.00025,60]
[342393813,1731785438540,-297.4516735,9.8e-05,2]
[342393814,1731785439055,-1625.06483643,9.8e-05,2]
[342393816,1731785439067,-2261.02859279,9.8e-05,2]
[342393819,1731785439078,-1470.87908501,9.8e-05,2]
[342393822,1731785439103,-33876.20729077,9.8e-05,2]
[342393824,1731785439112,-150.0,9.801e-05,2]
[342393826,1731785439121,-150.0,9.802e-05,2]
[342393828,1731785439130,-150.0,9.808e-05,2]
[342393830,1731785439144,-150.0,9.81e-05,2]
[342393833,1731785439154,-150.0,9.815e-05,2]
[342393835,1731785439163,-150.0,9.837e-05,2]
[342393837,1731785439176,-150.0,9.844e-05,2]
[342393839,1731785439186,-150.0,9.846e-05,2]
[342393841,1731785439195,-150.0,9.849e-05,2]
[342393843,1731785439205,-150.0,9.861e-05,2]
[342393845,1731785439214,-150.0,9.867e-05,2]
[342393847,1731785439224,-150.0,9.871e-05,2]
[342393849,1731785439233,-150.0,9.883e-05,2]
[342393851,1731785439242,-1160.0,9.883e-05,2]
[342393853,1731785439256,-13644.0,9.883e-05,2]
[342393854,1731785439266,-999.999999,9.888e-05,2]
[342393855,1731785439275,-150.0,9.891e-05,2]
[342393856,1731785439285,-150.0,9.891e-05,2]
[342393857,1731785439295,-150.0,9.895e-05,2]
[342393858,1731785439305,-150.0,9.896e-05,2]
[342393859,1731785439319,-150.0,9.899e-05,2]
[342393860,1731785439331,-5000.0,9.9e-05,2]
[342393861,1731785439341,-5627.1859,9.9e-05,2]
[342393862,1731785439350,-242250.6117341,9.9e-05,2]
[342393863,1731785439360,-1104.37126143,9.9e-05,2]
[342393864,1731785439369,-1104.37126143,9.9e-05,2]
[342393865,1731785439379,-10886.95845842,9.9e-05,2]
[342393866,1731785439391,-150.0,9.903e-05,2]
[342393867,1731785439400,-150.0,9.904e-05,2]
[342393868,1731785439409,-213.02,9.905e-05,2]
[342393869,1731785439419,-150.0,9.911e-05,2]
[342393870,1731785439429,-150.0,9.915e-05,2]
[342393871,1731785439439,-150.0,9.92e-05,2]
[342393872,1731785439448,-150.0,9.922e-05,2]
[342393873,1731785439457,-629.58,9.926e-05,2]
[342393874,1731785439467,-150.0,9.934e-05,2]
[342393875,1731785439476,-150.0,9.946e-05,2]
[342393876,1731785439486,-150.0,9.946e-05,2]
[342393877,1731785439495,-150.0,9.946e-05,2]
[342393878,1731785439504,-2790.332,9.949e-05,2]
[342393879,1731785439514,-175.848,9.949e-05,2]
[342393880,1731785439523,-150.0,9.951e-05,2]
[342393881,1731785439532,-150.0,9.956e-05,2]
[342393882,1731785439542,-150.0,9.967e-05,2]
[342393883,1731785439551,-500.0,9.973e-05,2]
[342393884,1731785439560,-500.0,9.973e-05,2]
[342393885,1731785439570,-150.0,9.98e-05,2]
[342393886,1731785439579,-150.0,9.986e-05,2]
[342393887,1731785439588,-557.5832622,9.988e-05,2]
[342393888,1731785439598,-382.0848778,9.988e-05,2]
[342393889,1731785439607,-186.5819764,9.988e-05,2]
[342393890,1731785439616,-626.6903973,9.988e-05,2]
[342393891,1731785439625,-610.3461242,9.988e-05,2]
[342393892,1731785439640,-150.0,9.989e-05,2]
[342393893,1731785439650,-188.8109681,9.993e-05,2]
[342393894,1731785439659,-191.0399598,9.993e-05,2]
[342393895,1731785439668,-193.2689514,9.993e-05,2]
[342393896,1731785439678,-632.5916785,9.993e-05,2]
[342393897,1731785439687,-638.4929596,9.993e-05,2]
[342393898,1731785439696,-644.3942407,9.993e-05,2]
[342393899,1731785439706,-616.0934982,9.993e-05,2]
[342393900,1731785439715,-621.8408721,9.993e-05,2]
[342393901,1731785439724,-627.5882461,9.993e-05,2]
[342393902,1731785439734,-167.0,9.995e-05,2]
[342393903,1731785439743,-8500.0,9.999e-05,2]
[342393904,1731785439753,-443.71229162,9.999e-05,2]
[342393905,1731785439762,-4398.08920975,0.0001,2]
[342393906,1731785439771,-214363.20702649,0.0001,2]
[342393907,1731785439781,-560.0,0.0001,2]
[342393908,1731785439790,-1925.0,0.0001,2]
[342393909,1731785439799,-3746.0,0.0001,2]
[342393910,1731785439808,-1260.0,0.0001,2]
[342393911,1731785439818,-814.0,0.0001,2]
[342393912,1731785439827,-3490.0,0.0001,2]
[342393913,1731785439836,-920.0,0.0001,2]
[342393914,1731785439846,-1092.0,0.0001,2]
[342393915,1731785439855,-44963.55673735,0.0001,2]
[342393916,1731785439864,-44963.55673731,0.0001,2]
[342393917,1731785439873,-44963.55673731,0.0001,2]
[342393918,1731785439882,-44963.55673731,0.0001,2]
[342393919,1731785439893,-44963.55673731,0.0001,2]
[342393920,1731785439903,-44963.55673731,0.0001,2]
[342393921,1731785439913,-44963.55673731,0.0001,2]
[342393922,1731785439922,-44963.55673731,0.0001,2]
[342393923,1731785439931,-44963.55673731,0.0001,2]
[342393924,1731785439941,-563.0,0.0001,2]
[342393925,1731785439951,-5935.0,0.0001,2]
[342393926,1731785439961,-1255.0,0.0001,2]
[342393927,1731785439972,-567.0,0.0001,2]
[342393928,1731785439983,-1717290.29594819,0.0001,2]
[342393929,1731785439996,-371.599991,0.0001,2]
[342393930,1731785440007,-5247.58473704,0.0001,2]
[342393931,1731785440019,-1994.61593576,0.0001,2]
[342393932,1731785440030,-2087.09411504,0.0001,2]
[342393933,1731785440042,-5051.31188926,0.0001,2]
[342393934,1731785440054,-5967.19199882,0.0001,2]
[342393935,1731785440069,-1162.8,0.0001,2]
[342393936,1731785440082,-478.081184,0.0001,2]
[342393939,1731785440322,-8933.26674371,0.0001,2]
[342393944,1731785443430,-2852.29985776,9.76e-05,2]
[342393945,1731785443439,-150.0,9.883e-05,2]
[342393946,1731785443448,-16947.83738227,0.0001,2]
[342393947,1731785443573,500.0,0.00025,60]
[342393948,1731785443605,-5974.67599843,0.0001,2]
[342393949,1731785443722,-5002.09287546,0.0001,2]
[342393950,1731785443734,-1839.32387707,0.0001,2]
[342393951,1731785443746,-3731.00159253,0.0001,2]
[342393952,1731785443757,-4181.47527273,0.0001,2]
[342393953,1731785443769,-378.22097235,0.0001,2]
[342393954,1731785443815,179.55,0.00025,60]
[342393972,1731785446303,-300.0,9e-05,3]
[342393973,1731785446312,-4409.19148,0.0001,2]
[342393976,1731785446360,-19708.12270568,0.0001,2]
[342393977,1731785446420,-600.0,9.1e-05,3]
[342393978,1731785446429,-1256.4157408,0.0001,2]
[342393979,1731785446440,-571.942,0.0001,2]
[342393980,1731785446451,-2260.97751733,0.0001,2]
[342393981,1731785446474,-313.62267489,0.0001,2]
[342393982,1731785446487,-1166.8,0.0001,2]
[342393983,1731785446531,-455.15,0.0001,2]
[342394005,1731785448012,500.0,0.00025,60]
[342394006,1731785448288,646.31,0.00025,60]
[342394007,1731785451073,500.0,0.00025,60]
[342394008,1731785451244,500.0,0.00025,60]
[342394009,1731785451451,500.0,0.00025,60]
[342394010,1731785451532,500.0,0.00025,60]
[342394011,1731785451708,500.0,0.00025,60]
[342394012,1731785451972,500.0,0.00025,60]
[342394013,1731785452067,500.0,0.00025,60]
[342394014,1731785452270,500.0,0.00025,60]